{"text_format":"1","workbook":"xlsx","n_sheets":4,"sheets":["Sheet2","Sheet1","الإحصائية الشهرية والسنوية","الإعدادات"],"not_rendered":{"charts":0,"images":0,"macros":1,"external_links":0,"defined_names":0,"comments":0,"pivot_tables":0},"unopened":[],"bounds":{"document_bytes":16777216,"sheet_cells":100000,"rows_first":2000,"rows_last":500,"rows_between":2000,"halvings":0,"cell_chars":16384,"cell_head_chars":4096},"cells_cut":0,"cells_raw":0,"read":"whole","date_system":"1900"}

{"sheet":"Sheet2","index":0,"n_rows":2,"n_cols":7,"rows_kept":2,"cut":false,"hidden":false,"merged":[]}
["الرصيد","الراتب الشهري","المصاريف","المتبقي من الدخل","موعد الراتب القادم","متوسط الصرف اليومي","مجموع صرف الشهر"]
[400000,30000,null,null,"2023-07-28"]

{"sheet":"Sheet1","index":1,"n_rows":41,"n_cols":11,"rows_kept":41,"cut":false,"hidden":false,"merged":[]}
["م","التاريخ","اليوم","رئيسي","فرعي","القيمة","طريقة الدفع","الوصف","الأهمية","الشهر","السنة"]
[1,"2023-07-08","السبت","سيارة","بنزين",200,"كاش",null,"ضروري",{"$f":"IF(B2=\"\",\"\",TEXT(B2,\"mmm\"))","v":"يوليو"},{"$f":"IF(B2=\"\",\"\",TEXT(B2,\"yyyy\"))","v":"2023"}]
[2,"2023-07-08","السبت","أنا","ملابس",115,"بطاقة",null,"ضروري",{"$f":"IF(B3=\"\",\"\",TEXT(B3,\"mmm\"))","v":"يوليو"},{"$f":"IF(B3=\"\",\"\",TEXT(B3,\"yyyy\"))","v":"2023"}]
[3,"2023-07-08","السبت","البيت","مقاضي",300,"بطاقة",null,"ضروري","يوليو","2023"]
[4,"2023-07-08","السبت","أنا","ملابس",322,"بطاقة",null,"ضروري","يوليو","2023"]
[5,"18/07/2023","الثلاثاء","البيت","أثاث",211,"بطاقة",null,"ضروري","يوليو","2023"]
[6,"2023-07-08","السبت","هدايا","هدايا",1000,"بطاقة",null,"كماليات","يوليو","2023"]
[7,"2023-07-08","السبت","أنا","علاج",43,"كاش",null,"ضروري","يوليو","2023"]
[8,"19/07/2023","الأربعاء","أنا","علاج",43,"بطاقة",null,"ضروري","يوليو","2023"]
[9,"2023-09-07","الأحد","خيري","صدقة",122,"بطاقة",null,"كماليات","سبتمبر","2023"]
[10,"2023-09-07","الأحد","قرض",null,10,"بطاقة",null,"كماليات","سبتمبر","2023"]
[11,"2023-09-07","الأحد","سفر",null,1000,"بطاقة",null,"ضروري","سبتمبر","2023"]
[12,"19/07/2023","الأحد","سيارة","زيت",66,"بطاقة",null,"ضروري","يوليو","2023"]
[13,"2023-07-07","الجمعة","الأبناء","مصروف",700,"بطاقة",null,"ضروري","يوليو","2023"]
[14,"2023-07-07","الجمعة","البيت","أثاث",2000,"بطاقة",null,"ضروري","يوليو","2023"]
[15,"2023-09-07","الأحد","هدايا","هدايا",500,"بطاقة",null,"كماليات","سبتمبر","2023"]
[16,"2023-09-07","الأحد","هدايا","هدايا",500,"بطاقة",null,"كماليات","سبتمبر","2023"]
[17,"2023-09-07","الأحد","هدايا","هدايا",500,"بطاقة",null,"كماليات","سبتمبر","2023"]
[18,"2023-07-07","الجمعة","البيت","صيانة",300,"بطاقة",null,"ضروري","يوليو","2023"]
[19,"2023-07-07","الجمعة","البيت","صيانة",300,"بطاقة",null,"ضروري","يوليو","2023"]
[20,"2023-07-07","الجمعة","البيت","صيانة",300,"بطاقة",null,"ضروري","يوليو","2023"]
[21,"2023-07-07","الجمعة","البيت","صيانة",100,"بطاقة",null,"ضروري","يوليو","2023"]
[22,"2023-07-07","الجمعة","البيت","صيانة",100,"بطاقة",null,"ضروري","يوليو","2023"]
[23,"2023-07-07","الجمعة","أنا","جزمة",200,"كاش",null,"ضروري","يوليو","2023"]
[24,"2023-09-07","الأحد","أنا","ملابس",200,"كاش",null,"ضروري","سبتمبر","2023"]
[25,"2023-09-07","الأحد","أنا","ملابس",200,"كاش",null,"ضروري","سبتمبر","2023"]
[26,"2023-07-07","الجمعة","أنا","ملابس",200,"كاش",null,"ضروري","يوليو","2023"]
[27,"2023-07-07","الجمعة","أنا","ملابس",200,"كاش",null,"ضروري","يوليو","2023"]
[28,"2023-07-07","الجمعة","أنا","ملابس",200,"كاش",null,"ضروري","يوليو","2023"]
[29,"2023-07-07","الجمعة","أنا","ملابس",200,"كاش",null,"ضروري","يوليو","2023"]
[null,null,null,null,null,null,null,null,null,"",""]
[null,null,null,null,null,null,null,null,null,"",""]
[null,null,null,null,null,null,null,null,null,"",""]
[null,null,null,null,null,null,null,null,null,"",""]
[null,null,null,null,null,null,null,null,null,"",""]
[null,null,null,null,null,null,null,null,null,"",""]
[null,null,null,null,null,null,null,null,null,"",""]
[null,null,null,null,null,null,null,null,null,"",""]
[null,null,null,null,null,null,null,null,null,"",""]
[null,null,null,null,null,null,null,null,null,"",""]
[null,null,null,null,null,null,null,null,null,"",""]

{"sheet":"الإحصائية الشهرية والسنوية","index":2,"n_rows":11,"n_cols":21,"rows_kept":11,"cut":false,"hidden":false,"merged":[[6,2,6,13],[1,2,1,13],[6,1,7,1],[1,17,1,19],[5,16,5,20]]}
[null,null,null,null,null,null,null,null,null,null,null,null,null,null,null,null,null,null,"حقائق مالية"]
[null,null,"الإحصائية السنوية",null,null,null,null,null,null,null,null,null,null,null,null,null,null,"أكثر الشهور صرفا"]
[null,null,2023,2024,2025,2026,2027,2028,2029,2030,2031,2032,2033,2034,null,null,null,"أكتوبر","نوفمبر","ديسمبر"]
[null,"إجمالي المصروفات"]
[null,"إجمالي المتبقي"]
[null,"إجمالي الدخل",null,null,null,null,null,null,null,null,null,null,null,null,null,null,"معدل الصرف حسب أيام الأسبوع"]
[null,2023,"الإحصائية الشهرية",null,null,null,null,null,null,null,null,null,null,null,null,null,null,null,null,0.2,0.3]
[null,null,"يناير","فبراير","مارس","إبريل","مايو","يونيو","يوليو","أغسطس","سبتمبر","أكتوبر","نوفمبر","ديسمبر",null,null,null,"السبت","الجمعة","الخميس ","الأربعاء"]
[null,"إجمالي المصروفات"]
[null,"إجمالي المتبقي"]
[null,"إجمالي الدخل"]

{"sheet":"الإعدادات","index":3,"n_rows":15,"n_cols":16,"rows_kept":15,"cut":false,"hidden":false,"merged":[]}
[null,null,"كماليات","ضروري","كماليات","ضروري","ضروري","كماليات","ضروري","كماليات","كماليات","كماليات","ضروري","ضروري","كماليات","كماليات"]
[null,null,"مطعم","أنا","هدايا","البيت","سيارة","خيري","تعليم","قرض","أجهزة","ترفيه","سفر","الأبناء","مناسبات","اشتراكات"]
[null,null,"عشاء","أخرى",null,"مقاضي","بنزين","صدقة","كتب ",null,"إكسسوارات","ألعاب","فندق","ملابس","وليمة","نادي رياضي"]
[null,null,"غداء","ملابس",null,"صيانة","صيانة","زكاة المال","تصوير مذكرات",null,"كمبيوتر","تمشية","تذاكر","مصروف","حفلة نجاح","فاتورة الجوال"]
[null,null,"فطور","علاج",null,"أثاث","قطع غيار","زكاة الفطر","دورة",null,"جوال","ملاهي","تاكسي","علاج"]
[null,null,"حلويات","غسيل ملابس",null,"انترنت","زيت","أضحية","رسوم دراسية",null,"تابلت","أفلام","مترو","ألعاب"]
[null,null,"عصائر","عطر",null,"غاز","مخالفة",null,"أقلام",null,"طابعة",null,"ايجار سيارة","ملاهي"]
[null,null,"كوفي شوب","حلاقة",null,null,"غسيل",null,"دفاتر",null,"كاميرا",null,"تسوق","مشتريات"]
[null,null,null,"جزمة",null,null,"رخصة سير",null,"شنطة",null,"رياضة",null,"هدايا"]
[null,null,null,"تصليح ساعة",null,null,"أخرى",null,null,null,null,null,"رسوم جواز السفر"]
[null,null,null,"محفظة",null,null,"تأمين",null,null,null,null,null,"رسوم التأشيرة"]
[null,null,null,"تصوير",null,null,"قسط"]
[null,null,null,"شنطة",null,null,"إكسسوارات"]
[null,null,null,"نظارة",null,null,"ايجار"]
[null,null,null,null,null,null,"رخصة قيادة"]